[Event "Late-Titled-Tuesday-Blitz-June-18-2024"]
[Site "Chess.com"]
[Date "2024.06.18"]
[Round "2"]
[White "Smiechu"]
[Black "DishonorOnYourCow"]
[Result "1-0"]
[WhiteElo "2337"]
[BlackElo "2507"]
[TimeControl "180+1"]
[EndTime "14:19:14 PDT"]
[Termination "Smiechu won on time"]

1. e4 {[%clk 0:02:57.9]} 1... c5 {[%clk 0:02:59.9]} 2. Nf3 {[%clk 0:02:57.6]}
2... d6 {[%clk 0:03:00.3]} 3. d4 {[%clk 0:02:56.7]} 3... cxd4 {[%clk 0:03:00.9]}
4. Nxd4 {[%clk 0:02:57.2]} 4... Nf6 {[%clk 0:03:01.5]} 5. Nc3 {[%clk 0:02:57.8]}
5... a6 {[%clk 0:03:01.7]} 6. Be3 {[%clk 0:02:58.3]} 6... Ng4 {[%clk 0:03:01.7]}
7. Bc1 {[%clk 0:02:56.6]} 7... Nf6 {[%clk 0:03:01.8]} 8. Be3 {[%clk 0:02:56.7]}
8... e5 {[%clk 0:03:02.1]} 9. Nb3 {[%clk 0:02:56.5]} 9... Be7 {[%clk 0:03:01.9]}
10. Qd2 {[%clk 0:02:57]} 10... Be6 {[%clk 0:03:01.4]} 11. O-O-O {[%clk
0:02:57.3]} 11... Nbd7 {[%clk 0:02:58.8]} 12. f4 {[%clk 0:02:57.5]} 12... b5
{[%clk 0:02:52.7]} 13. f5 {[%clk 0:02:56.7]} 13... Bc4 {[%clk 0:02:52.7]} 14. g4
{[%clk 0:02:56.9]} 14... Bxf1 {[%clk 0:02:48.8]} 15. Rhxf1 {[%clk 0:02:55.5]}
15... Nxg4 {[%clk 0:02:45.3]} 16. Rg1 {[%clk 0:02:55.4]} 16... Nxe3 {[%clk
0:02:42.9]} 17. Qxe3 {[%clk 0:02:56]} 17... h6 {[%clk 0:02:01.1]} 18. Kb1 {[%clk
0:02:48.9]} 18... Bg5 {[%clk 0:01:58.1]} 19. Qd3 {[%clk 0:02:49]} 19... Nc5
{[%clk 0:01:47.9]} 20. Nxc5 {[%clk 0:02:42.8]} 20... dxc5 {[%clk 0:01:47.6]} 21.
Qg3 {[%clk 0:02:42.5]} 21... Qb8 {[%clk 0:01:36.7]} 22. h4 {[%clk 0:02:41.2]}
22... Bf6 {[%clk 0:01:30.1]} 23. Nd5 {[%clk 0:02:41.2]} 23... Qd6 {[%clk
0:01:14.4]} 24. Nxf6+ {[%clk 0:02:12.2]} 24... Qxf6 {[%clk 0:01:15.3]} 25. Qxg7
{[%clk 0:02:11.9]} 25... Qxg7 {[%clk 0:01:15.2]} 26. Rxg7 {[%clk 0:02:12.7]}
26... Ke7 {[%clk 0:01:10.9]} 27. c3 {[%clk 0:02:01.4]} 27... Rad8 {[%clk
0:01:03.5]} 28. Kc2 {[%clk 0:02:00.7]} 28... Rxd1 {[%clk 0:00:59.1]} 29. Kxd1
{[%clk 0:02:00.6]} 29... Kf6 {[%clk 0:00:59.5]} 30. Rg3 {[%clk 0:01:55.5]} 30...
Rd8+ {[%clk 0:00:59.5]} 31. Ke2 {[%clk 0:01:55.5]} 31... c4 {[%clk 0:00:52.5]}
32. b3 {[%clk 0:01:48]} 32... cxb3 {[%clk 0:00:46.5]} 33. axb3 {[%clk
0:01:47.7]} 33... a5 {[%clk 0:00:47.2]} 34. Rg1 {[%clk 0:01:46.1]} 34... a4
{[%clk 0:00:38.5]} 35. bxa4 {[%clk 0:01:45.6]} 35... bxa4 {[%clk 0:00:39.4]} 36.
Ra1 {[%clk 0:01:44]} 36... Ra8 {[%clk 0:00:39.7]} 37. Kd3 {[%clk 0:01:42.8]}
37... Ke7 {[%clk 0:00:38.6]} 38. Kc4 {[%clk 0:01:36.8]} 38... Kd6 {[%clk
0:00:34.5]} 39. Ra3 {[%clk 0:01:36.1]} 39... Kc6 {[%clk 0:00:30.1]} 40. Kb4
{[%clk 0:01:35.1]} 40... Rg8 {[%clk 0:00:19]} 41. Rxa4 {[%clk 0:01:34.8]} 41...
Kb6 {[%clk 0:00:16.9]} 42. Kc4 {[%clk 0:01:31.1]} 42... Rc8+ {[%clk 0:00:07.3]}
43. Kd3 {[%clk 0:01:28.2]} 43... Rg8 {[%clk 0:00:07.2]} 44. Rb4+ {[%clk
0:01:24.5]} 44... Kc6 {[%clk 0:00:07.1]} 45. Ra4 {[%clk 0:01:17.2]} 45... Kb6
{[%clk 0:00:04.6]} 46. Ra1 {[%clk 0:01:05.9]} 46... Rg4 {[%clk 0:00:04.2]} 47.
Ra8 {[%clk 0:01:05.1]} 47... Rxh4 {[%clk 0:00:04]} 48. Re8 {[%clk 0:01:05.1]}
48... Kc5 {[%clk 0:00:01.7]} 49. Rxe5+ {[%clk 0:01:05.1]} 49... Kd6 {[%clk
0:00:02.6]} 50. Rd5+ {[%clk 0:01:04.4]} 50... Kc6 {[%clk 0:00:02.6]} 51. Ra5
{[%clk 0:01:02.2]} 51... Rh1 {[%clk 0:00:02.1]} 52. Kd4 {[%clk 0:01:00]} 52...
h5 {[%clk 0:00:01.5]} 53. Ra6+ {[%clk 0:00:58.3]} 53... Kd7 {[%clk 0:00:01.6]}
54. Rh6 {[%clk 0:00:58.1]} 54... h4 {[%clk 0:00:01.9]} 55. Ke5 {[%clk
0:00:58.3]} 55... h3 {[%clk 0:00:01.8]} 56. Kf6 {[%clk 0:00:55.6]} 56... h2
{[%clk 0:00:01.7]} 57. Kxf7 {[%clk 0:00:53.1]} 57... Rd1 {[%clk 0:00:01]} 58.
Rxh2 {[%clk 0:00:52.3]} 58... Re1 {[%clk 0:00:01.7]} 59. Rh4 {[%clk 0:00:51.4]}
59... Re3 {[%clk 0:00:02]} 60. f6 {[%clk 0:00:49.6]} 1-0

[Event "Late-Titled-Tuesday-Blitz-June-18-2024"]
[Site "Chess.com"]
[Date "2024.06.18"]
[Round "2"]
[White "YouShallNotPass001"]
[Black "katharinareinecke"]
[Result "1-0"]
[WhiteElo "2441"]
[BlackElo "2049"]
[TimeControl "180+1"]
[EndTime "14:19:15 PDT"]
[Termination "YouShallNotPass001 won on time"]

1. e4 {[%clk 0:03:00.9]} 1... c6 {[%clk 0:02:58.5]} 2. Nc3 {[%clk 0:02:57]} 2...
d5 {[%clk 0:02:58.3]} 3. Nf3 {[%clk 0:02:57.7]} 3... Bg4 {[%clk 0:02:57.5]} 4.
h3 {[%clk 0:02:48.3]} 4... Bxf3 {[%clk 0:02:56]} 5. Qxf3 {[%clk 0:02:49.2]} 5...
e6 {[%clk 0:02:55]} 6. g3 {[%clk 0:02:43.6]} 6... Nf6 {[%clk 0:02:53.7]} 7. Bg2
{[%clk 0:02:43.6]} 7... Be7 {[%clk 0:02:48.5]} 8. d3 {[%clk 0:02:42.1]} 8...
Nbd7 {[%clk 0:02:35.7]} 9. Bd2 {[%clk 0:02:40.7]} 9... d4 {[%clk 0:02:32.6]} 10.
Nd1 {[%clk 0:02:29.8]} 10... e5 {[%clk 0:02:30.5]} 11. O-O {[%clk 0:02:27.4]}
11... c5 {[%clk 0:02:27.7]} 12. b3 {[%clk 0:02:26.3]} 12... b5 {[%clk
0:02:26.1]} 13. a4 {[%clk 0:02:24.8]} 13... a6 {[%clk 0:02:23.2]} 14. Qe2 {[%clk
0:02:23.8]} 14... O-O {[%clk 0:02:11]} 15. f4 {[%clk 0:02:23.6]} 15... Bd6
{[%clk 0:01:59.9]} 16. f5 {[%clk 0:02:22.8]} 16... Qc7 {[%clk 0:01:50.8]} 17. g4
{[%clk 0:02:21.1]} 17... c4 {[%clk 0:01:44.7]} 18. g5 {[%clk 0:02:16.9]} 18...
Ne8 {[%clk 0:01:44.2]} 19. Nf2 {[%clk 0:02:09.2]} 19... cxb3 {[%clk 0:01:34.6]}
20. cxb3 {[%clk 0:02:08]} 20... bxa4 {[%clk 0:01:34.9]} 21. bxa4 {[%clk
0:02:06.2]} 21... a5 {[%clk 0:01:32]} 22. Ng4 {[%clk 0:02:01.1]} 22... Bb4
{[%clk 0:01:29.4]} 23. Rac1 {[%clk 0:01:56.7]} 23... Qd6 {[%clk 0:01:22.4]} 24.
f6 {[%clk 0:01:54.8]} 24... gxf6 {[%clk 0:01:12.9]} 25. gxf6 {[%clk 0:01:39.5]}
25... Bxd2 {[%clk 0:01:10]} 26. Qxd2 {[%clk 0:01:39.1]} 26... Kh8 {[%clk
0:00:55]} 27. Rf5 {[%clk 0:00:54.6]} 27... Nexf6 {[%clk 0:00:51.7]} 28. Nh6
{[%clk 0:00:49.6]} 28... Qe6 {[%clk 0:00:45.2]} 29. Rcf1 {[%clk 0:00:47.5]}
29... Rab8 {[%clk 0:00:20.5]} 30. Qg5 {[%clk 0:00:44.8]} 30... Rg8 {[%clk
0:00:18.3]} 31. Nxg8 {[%clk 0:00:41.4]} 31... Rxg8 {[%clk 0:00:19.2]} 32. Qh4
{[%clk 0:00:34.9]} 32... Rg6 {[%clk 0:00:18]} 33. Qf2 {[%clk 0:00:30.5]} 33...
Qb3 {[%clk 0:00:13.9]} 34. Qd2 {[%clk 0:00:17.7]} 34... Qxa4 {[%clk 0:00:12.8]}
35. Kh2 {[%clk 0:00:16.9]} 35... Qb4 {[%clk 0:00:12.7]} 36. Qc2 {[%clk
0:00:16.8]} 36... a4 {[%clk 0:00:11]} 37. Rb1 {[%clk 0:00:15.8]} 37... Qa3
{[%clk 0:00:08.3]} 38. Rb7 {[%clk 0:00:11.1]} 38... Qa1 {[%clk 0:00:05.7]} 39.
Qc8+ {[%clk 0:00:10.4]} 39... Kg7 {[%clk 0:00:05.6]} 40. Rxd7 {[%clk 0:00:09.6]}
40... Nxd7 {[%clk 0:00:05.8]} 41. Qxd7 {[%clk 0:00:09.7]} 41... a3 {[%clk
0:00:05.8]} 42. Qxf7+ {[%clk 0:00:09.3]} 42... Kh6 {[%clk 0:00:05.3]} 43. Qf8+
{[%clk 0:00:09.6]} 43... Rg7 {[%clk 0:00:03.2]} 44. Rf6+ {[%clk 0:00:09.7]} 1-0

[Event "Late-Titled-Tuesday-Blitz-June-18-2024"]
[Site "Chess.com"]
[Date "2024.06.18"]
[Round "2"]
[White "VacheH009"]
[Black "szefru"]
[Result "1-0"]
[WhiteElo "2528"]
[BlackElo "2328"]
[TimeControl "180+1"]
[EndTime "14:19:18 PDT"]
[Termination "VacheH009 won by resignation"]

1. c4 {[%clk 0:03:00.9]} 1... Nf6 {[%clk 0:02:59.9]} 2. Nc3 {[%clk 0:02:59.7]}
2... g6 {[%clk 0:02:59.2]} 3. g3 {[%clk 0:02:58.6]} 3... Bg7 {[%clk 0:02:59.4]}
4. Bg2 {[%clk 0:02:59.2]} 4... O-O {[%clk 0:02:59.5]} 5. d4 {[%clk 0:02:57.4]}
5... c6 {[%clk 0:02:59.8]} 6. Nf3 {[%clk 0:02:57.3]} 6... d6 {[%clk 0:03:00.2]}
7. O-O {[%clk 0:02:57.1]} 7... a6 {[%clk 0:02:56.7]} 8. h3 {[%clk 0:02:37.9]}
8... b5 {[%clk 0:02:54.4]} 9. b3 {[%clk 0:02:24.8]} 9... Be6 {[%clk 0:02:32.1]}
10. Qd3 {[%clk 0:02:14.9]} 10... b4 {[%clk 0:02:25.7]} 11. Na4 {[%clk
0:02:08.9]} 11... Bf5 {[%clk 0:02:25.6]} 12. Qd1 {[%clk 0:02:09.2]} 12... Nbd7
{[%clk 0:02:22.5]} 13. Bb2 {[%clk 0:02:08.3]} 13... h5 {[%clk 0:02:18.6]} 14.
Nd2 {[%clk 0:02:04.4]} 14... d5 {[%clk 0:02:10.3]} 15. cxd5 {[%clk 0:02:00.7]}
15... cxd5 {[%clk 0:02:11.2]} 16. Rc1 {[%clk 0:01:59.5]} 16... Rc8 {[%clk
0:02:10.9]} 17. Nf3 {[%clk 0:01:33.3]} 17... Ne4 {[%clk 0:02:06.4]} 18. Ne5
{[%clk 0:01:30.3]} 18... Nxe5 {[%clk 0:01:39.5]} 19. dxe5 {[%clk 0:01:31.2]}
19... Be6 {[%clk 0:01:39.7]} 20. Qd4 {[%clk 0:00:54.6]} 20... Qa5 {[%clk
0:01:14.8]} 21. Qb6 {[%clk 0:00:39.5]} 21... Qb5 {[%clk 0:00:54.6]} 22. e3
{[%clk 0:00:24.1]} 22... Nc3 {[%clk 0:00:44.3]} 23. Qxb5 {[%clk 0:00:19.9]}
23... Nxb5 {[%clk 0:00:31.8]} 24. Nb6 {[%clk 0:00:20.4]} 24... Rcd8 {[%clk
0:00:28.7]} 25. Rfd1 {[%clk 0:00:19.5]} 25... Nc3 {[%clk 0:00:26.8]} 26. Bxc3
{[%clk 0:00:18.7]} 26... bxc3 {[%clk 0:00:27.7]} 27. Rxc3 {[%clk 0:00:18.7]}
27... Bxe5 {[%clk 0:00:28.6]} 28. Rcd3 {[%clk 0:00:18.4]} 28... Rc8 {[%clk
0:00:18.7]} 29. Nxc8 {[%clk 0:00:17]} 29... Rxc8 {[%clk 0:00:19.4]} 30. Bxd5
{[%clk 0:00:17.6]} 30... Bxh3 {[%clk 0:00:19.4]} 31. Bg2 {[%clk 0:00:16.3]}
31... Bg4 {[%clk 0:00:19.4]} 32. Re1 {[%clk 0:00:15.8]} 32... Rc2 {[%clk
0:00:18.2]} 33. a3 {[%clk 0:00:14.7]} 33... Rb2 {[%clk 0:00:17.5]} 34. b4 {[%clk
0:00:14.8]} 34... Kg7 {[%clk 0:00:16.3]} 35. Rc1 {[%clk 0:00:14.9]} 35... Bf5
{[%clk 0:00:16]} 36. e4 {[%clk 0:00:14.5]} 36... Be6 {[%clk 0:00:15.3]} 37. Rcd1
{[%clk 0:00:14]} 37... Bb3 {[%clk 0:00:14]} 38. Rc1 {[%clk 0:00:13.1]} 38... Be6
{[%clk 0:00:13.5]} 39. Rc6 {[%clk 0:00:12.9]} 39... a5 {[%clk 0:00:13.1]} 40.
bxa5 {[%clk 0:00:12.5]} 40... Rb1+ {[%clk 0:00:13]} 41. Kh2 {[%clk 0:00:12.4]}
41... h4 {[%clk 0:00:13.4]} 42. a6 {[%clk 0:00:11.4]} 42... hxg3+ {[%clk
0:00:13.6]} 43. fxg3 {[%clk 0:00:12.3]} 43... Rb2 {[%clk 0:00:13.4]} 44. a7
{[%clk 0:00:12.4]} 1-0

[Event "Late-Titled-Tuesday-Blitz-June-18-2024"]
[Site "Chess.com"]
[Date "2024.06.18"]
[Round "2"]
[White "DryCounty"]
[Black "Grischuk"]
[Result "0-1"]
[WhiteElo "2649"]
[BlackElo "3129"]
[TimeControl "180+1"]
[EndTime "14:19:19 PDT"]
[Termination "Grischuk won on time"]

1. e4 {[%clk 0:03:00.9]} 1... e5 {[%clk 0:02:59.9]} 2. Nf3 {[%clk 0:03:00.3]}
2... Nc6 {[%clk 0:03:00.6]} 3. Nc3 {[%clk 0:02:59.5]} 3... Nf6 {[%clk
0:03:00.5]} 4. Be2 {[%clk 0:02:59.3]} 4... Bd6 {[%clk 0:02:58]} 5. d3 {[%clk
0:02:55.5]} 5... O-O {[%clk 0:02:53.4]} 6. Bg5 {[%clk 0:02:53.8]} 6... h6 {[%clk
0:02:30.2]} 7. Bh4 {[%clk 0:02:52.1]} 7... Be7 {[%clk 0:02:20.1]} 8. O-O {[%clk
0:02:42.3]} 8... d6 {[%clk 0:02:20.3]} 9. d4 {[%clk 0:02:27.2]} 9... Bg4 {[%clk
0:01:51.2]} 10. dxe5 {[%clk 0:02:14.8]} 10... dxe5 {[%clk 0:01:51]} 11. Qxd8
{[%clk 0:02:11.5]} 11... Rfxd8 {[%clk 0:01:51.3]} 12. Bxf6 {[%clk 0:02:11.4]}
12... Bxf6 {[%clk 0:01:49.8]} 13. Nd5 {[%clk 0:02:11.3]} 13... Bxf3 {[%clk
0:01:32.2]} 14. Bxf3 {[%clk 0:02:07.9]} 14... Nd4 {[%clk 0:01:32.9]} 15. Bd1
{[%clk 0:01:52.1]} 15... c6 {[%clk 0:01:28.1]} 16. Nxf6+ {[%clk 0:01:51.3]}
16... gxf6 {[%clk 0:01:29]} 17. c3 {[%clk 0:01:49.9]} 17... Ne6 {[%clk
0:01:26.8]} 18. Bg4 {[%clk 0:01:38.6]} 18... Rd2 {[%clk 0:01:23.4]} 19. Rab1
{[%clk 0:01:31.5]} 19... Rad8 {[%clk 0:01:08.8]} 20. Rfd1 {[%clk 0:01:29.4]}
20... Nc5 {[%clk 0:01:07]} 21. Rxd2 {[%clk 0:01:18.1]} 21... Rxd2 {[%clk
0:01:07.9]} 22. Bf5 {[%clk 0:01:15.6]} 22... Na4 {[%clk 0:00:48.4]} 23. Kf1
{[%clk 0:01:14.2]} 23... Nxb2 {[%clk 0:00:37.3]} 24. Bc8 {[%clk 0:00:59.9]}
24... b6 {[%clk 0:00:17.3]} 25. Ke1 {[%clk 0:00:42.3]} 25... Rc2 {[%clk
0:00:17.1]} 26. Ba6 {[%clk 0:00:31.2]} 26... b5 {[%clk 0:00:17.1]} 27. Bb7
{[%clk 0:00:24.4]} 27... Nd3+ {[%clk 0:00:09.8]} 28. Kd1 {[%clk 0:00:21.8]}
28... Rxa2 {[%clk 0:00:07]} 29. Bxc6 {[%clk 0:00:21.1]} 29... a6 {[%clk
0:00:07.6]} 30. c4 {[%clk 0:00:14.7]} 30... Nxf2+ {[%clk 0:00:06.7]} 31. Ke1
{[%clk 0:00:13.9]} 31... Nd3+ {[%clk 0:00:07.6]} 32. Kf1 {[%clk 0:00:14]} 32...
b4 {[%clk 0:00:04.6]} 33. c5 {[%clk 0:00:12.2]} 33... a5 {[%clk 0:00:03.5]} 34.
Bd5 {[%clk 0:00:08.8]} 34... Rc2 {[%clk 0:00:03.5]} 35. c6 {[%clk 0:00:07.9]}
35... a4 {[%clk 0:00:02.5]} 36. Rd1 {[%clk 0:00:07.2]} 36... b3 {[%clk
0:00:02.5]} 37. Rxd3 {[%clk 0:00:05.3]} 37... b2 {[%clk 0:00:03]} 38. Ba2 {[%clk
0:00:04.6]} 38... Rxc6 {[%clk 0:00:03]} 39. Rd8+ {[%clk 0:00:03.8]} 39... Kg7
{[%clk 0:00:02.9]} 40. Rb8 {[%clk 0:00:04.2]} 40... a3 {[%clk 0:00:02.5]} 41.
Ke2 {[%clk 0:00:02.6]} 41... Rc1 {[%clk 0:00:02.5]} 42. Kd2 {[%clk 0:00:02.6]}
42... Ra1 {[%clk 0:00:02.6]} 0-1

[Event "Late-Titled-Tuesday-Blitz-June-18-2024"]
[Site "Chess.com"]
[Date "2024.06.18"]
[Round "2"]
[White "randomo"]
[Black "SHIVACalypso"]
[Result "0-1"]
[WhiteElo "2308"]
[BlackElo "2519"]
[TimeControl "180+1"]
[EndTime "14:19:19 PDT"]
[Termination "SHIVACalypso won by resignation"]

1. e4 {[%clk 0:02:59.8]} 1... e6 {[%clk 0:03:00.9]} 2. d4 {[%clk 0:02:58.4]}
2... d5 {[%clk 0:03:01.4]} 3. Nc3 {[%clk 0:02:59]} 3... Bb4 {[%clk 0:02:59.3]}
4. exd5 {[%clk 0:02:58.8]} 4... exd5 {[%clk 0:02:57.5]} 5. Qf3 {[%clk
0:02:58.8]} 5... Nc6 {[%clk 0:02:53.4]} 6. Bb5 {[%clk 0:02:58]} 6... Ne7 {[%clk
0:02:49.9]} 7. Ne2 {[%clk 0:02:55.4]} 7... Be6 {[%clk 0:02:44.1]} 8. Bd2 {[%clk
0:02:53.1]} 8... a6 {[%clk 0:02:40.6]} 9. Bd3 {[%clk 0:02:51.2]} 9... Qd7 {[%clk
0:02:38.9]} 10. a3 {[%clk 0:02:40.4]} 10... Bd6 {[%clk 0:02:38.7]} 11. Bf4
{[%clk 0:02:36.4]} 11... Nf5 {[%clk 0:02:35.7]} 12. Bxf5 {[%clk 0:02:22.4]}
12... Bxf5 {[%clk 0:02:29.2]} 13. Bxd6 {[%clk 0:02:21.6]} 13... cxd6 {[%clk
0:02:27.8]} 14. Nxd5 {[%clk 0:02:19.1]} 14... Bxc2 {[%clk 0:01:50]} 15. Nb6
{[%clk 0:02:09.9]} 15... Qe7 {[%clk 0:01:50.1]} 16. Nxa8 {[%clk 0:02:01.5]}
16... O-O {[%clk 0:01:28.8]} 17. O-O {[%clk 0:01:55.1]} 17... Qd8 {[%clk
0:01:22.8]} 18. Qc3 {[%clk 0:01:44.7]} 18... Bg6 {[%clk 0:01:15.8]} 19. Nf4
{[%clk 0:01:34.7]} 19... Qxa8 {[%clk 0:01:14.2]} 20. Nxg6 {[%clk 0:01:33.6]}
20... fxg6 {[%clk 0:01:15.1]} 21. Rfe1 {[%clk 0:01:25.9]} 21... Qd8 {[%clk
0:01:12.8]} 22. Qb3+ {[%clk 0:01:12.4]} 22... Kh8 {[%clk 0:01:12.5]} 23. Qxb7
{[%clk 0:01:11.1]} 23... Nxd4 {[%clk 0:01:08.3]} 24. Rad1 {[%clk 0:01:07.7]}
24... Qh4 {[%clk 0:01:00.5]} 25. Rd2 {[%clk 0:00:35.1]} 25... Qf4 {[%clk
0:00:45.4]} 26. Qb4 {[%clk 0:00:27.7]} 26... Nf3+ {[%clk 0:00:20]} 27. gxf3
{[%clk 0:00:27.5]} 27... Qxf3 {[%clk 0:00:20.9]} 28. Re3 {[%clk 0:00:26.3]}
28... Qf5 {[%clk 0:00:20.3]} 29. Qxd6 {[%clk 0:00:24.3]} 29... h5 {[%clk
0:00:18.9]} 30. Rde2 {[%clk 0:00:22.8]} 30... Rf6 {[%clk 0:00:18]} 31. Re8+
{[%clk 0:00:21]} 31... Kh7 {[%clk 0:00:18.1]} 32. Qg3 {[%clk 0:00:19.6]} 32...
Qb1+ {[%clk 0:00:16.9]} 33. Kg2 {[%clk 0:00:19.7]} 33... Rf5 {[%clk 0:00:14.8]}
34. R8e5 {[%clk 0:00:19.1]} 34... Rf6 {[%clk 0:00:13.8]} 35. Re8 {[%clk
0:00:18.1]} 35... Qc1 {[%clk 0:00:13.2]} 36. h4 {[%clk 0:00:15.5]} 36... Rf4
{[%clk 0:00:11.8]} 37. R8e6 {[%clk 0:00:13]} 37... Rg4 {[%clk 0:00:11.6]} 38. f3
{[%clk 0:00:10.7]} 38... Rxg3+ {[%clk 0:00:11.4]} 39. Kxg3 {[%clk 0:00:11.6]}
39... Qg1+ {[%clk 0:00:11.5]} 40. Kf4 {[%clk 0:00:11.6]} 40... Qh2+ {[%clk
0:00:11.2]} 41. Ke3 {[%clk 0:00:12]} 41... Qxh4 {[%clk 0:00:11.2]} 42. Kd2
{[%clk 0:00:12.2]} 42... Qg5+ {[%clk 0:00:11.4]} 43. Kc2 {[%clk 0:00:12.6]}
43... Qf5+ {[%clk 0:00:11.5]} 44. Kc1 {[%clk 0:00:13.1]} 44... Qxf3 {[%clk
0:00:11.8]} 45. R6e3 {[%clk 0:00:13.2]} 45... Qf1+ {[%clk 0:00:12]} 46. Kc2
{[%clk 0:00:14.1]} 46... Qf5+ {[%clk 0:00:12.2]} 47. Kb3 {[%clk 0:00:14.4]}
47... g5 {[%clk 0:00:12.1]} 48. Ka2 {[%clk 0:00:15.3]} 48... Qf7+ {[%clk
0:00:12]} 49. Re6 {[%clk 0:00:15.5]} 49... g4 {[%clk 0:00:12.4]} 50. Kb1 {[%clk
0:00:15.9]} 50... g3 {[%clk 0:00:12.5]} 51. R6e5 {[%clk 0:00:16.4]} 51... Qg6+
{[%clk 0:00:12.4]} 52. Ka1 {[%clk 0:00:15.9]} 52... g2 {[%clk 0:00:13.3]} 53.
Rxh5+ {[%clk 0:00:15.2]} 53... Qxh5 {[%clk 0:00:13.2]} 54. Rxg2 {[%clk
0:00:16.1]} 54... Qh1+ {[%clk 0:00:13.5]} 0-1

[Event "Late-Titled-Tuesday-Blitz-June-18-2024"]
[Site "Chess.com"]
[Date "2024.06.18"]
[Round "2"]
[White "sansanathalia"]
[Black "OIAM03"]
[Result "1-0"]
[WhiteElo "2439"]
[BlackElo "2030"]
[TimeControl "180+1"]
[EndTime "14:19:19 PDT"]
[Termination "sansanathalia won on time"]

1. e4 {[%clk 0:03:00.9]} 1... c5 {[%clk 0:02:59.3]} 2. Nf3 {[%clk 0:02:58.9]}
2... d6 {[%clk 0:02:58.6]} 3. d4 {[%clk 0:02:57.2]} 3... cxd4 {[%clk 0:02:58.5]}
4. Qxd4 {[%clk 0:02:56.2]} 4... Nc6 {[%clk 0:02:53.1]} 5. Bb5 {[%clk 0:02:52.8]}
5... Bd7 {[%clk 0:02:52.8]} 6. Bxc6 {[%clk 0:02:52.4]} 6... Bxc6 {[%clk
0:02:52.8]} 7. Nc3 {[%clk 0:02:52.3]} 7... Nf6 {[%clk 0:02:52]} 8. Bg5 {[%clk
0:02:50.5]} 8... Nd7 {[%clk 0:02:12.4]} 9. O-O-O {[%clk 0:02:47.5]} 9... Qb6
{[%clk 0:02:10.8]} 10. Qd2 {[%clk 0:02:36]} 10... O-O-O {[%clk 0:01:50.7]} 11.
Nd4 {[%clk 0:02:21.9]} 11... h6 {[%clk 0:01:47.3]} 12. Be3 {[%clk 0:02:18.2]}
12... Nc5 {[%clk 0:01:42.5]} 13. f3 {[%clk 0:02:11]} 13... g6 {[%clk 0:01:36.3]}
14. Nxc6 {[%clk 0:02:02.7]} 14... Qxc6 {[%clk 0:01:35.5]} 15. Nd5 {[%clk
0:01:53.5]} 15... e6 {[%clk 0:01:26.8]} 16. Nb4 {[%clk 0:01:36]} 16... Qc7
{[%clk 0:01:25.1]} 17. Qc3 {[%clk 0:01:23]} 17... Rg8 {[%clk 0:01:22.6]} 18. Qa3
{[%clk 0:01:11.4]} 18... Kb8 {[%clk 0:01:16.6]} 19. Kb1 {[%clk 0:00:44.1]} 19...
Bg7 {[%clk 0:01:15.7]} 20. Nd3 {[%clk 0:00:41.8]} 20... Nxd3 {[%clk 0:01:01]}
21. Rxd3 {[%clk 0:00:39]} 21... a6 {[%clk 0:00:34.7]} 22. Rb3 {[%clk 0:00:36.6]}
22... Ka8 {[%clk 0:00:30.6]} 23. Bb6 {[%clk 0:00:35.3]} 23... Qc6 {[%clk
0:00:26.5]} 24. Bxd8 {[%clk 0:00:34.3]} 24... Rxd8 {[%clk 0:00:26.2]} 25. Qb4
{[%clk 0:00:30]} 25... Rc8 {[%clk 0:00:24.6]} 26. Rc1 {[%clk 0:00:26.4]} 26...
d5 {[%clk 0:00:21.8]} 27. Rd3 {[%clk 0:00:20.4]} 27... dxe4 {[%clk 0:00:19.9]}
28. Qxe4 {[%clk 0:00:19.9]} 28... Qxe4 {[%clk 0:00:19.5]} 29. fxe4 {[%clk
0:00:20.8]} 29... Be5 {[%clk 0:00:18.5]} 30. g3 {[%clk 0:00:20.5]} 30... h5
{[%clk 0:00:17.6]} 31. Rf1 {[%clk 0:00:19.9]} 31... f6 {[%clk 0:00:16.9]} 32. c3
{[%clk 0:00:19.8]} 32... h4 {[%clk 0:00:15.2]} 33. gxh4 {[%clk 0:00:18]} 33...
Rh8 {[%clk 0:00:14.7]} 34. Rh3 {[%clk 0:00:17.4]} 34... g5 {[%clk 0:00:13.2]}
35. Rd3 {[%clk 0:00:14.1]} 35... Rxh4 {[%clk 0:00:12]} 36. Rd8+ {[%clk 0:00:13]}
36... Ka7 {[%clk 0:00:12]} 37. Re8 {[%clk 0:00:13.2]} 37... Rxh2 {[%clk
0:00:11.2]} 38. Rxe6 {[%clk 0:00:13.6]} 38... g4 {[%clk 0:00:10.7]} 39. Re8
{[%clk 0:00:13.2]} 39... g3 {[%clk 0:00:10.2]} 40. Rg8 {[%clk 0:00:13.3]} 40...
g2 {[%clk 0:00:09.6]} 41. Rg1 {[%clk 0:00:12.8]} 41... Bf4 {[%clk 0:00:02.3]}
42. R8xg2 {[%clk 0:00:12.3]} 1-0